{"text_format":"1","workbook":"xlsx","n_sheets":6,"sheets":["Volume","StripWall","Wapening","Toelichting1","Toelichting2","Hulp"],"not_rendered":{"charts":0,"images":19,"macros":1,"external_links":0,"defined_names":17,"comments":3,"pivot_tables":0},"unopened":[],"bounds":{"document_bytes":16777216,"sheet_cells":100000,"rows_first":2000,"rows_last":500,"rows_between":2000,"halvings":0,"cell_chars":16384,"cell_head_chars":4096},"cells_cut":0,"cells_raw":0,"read":"whole","date_system":"1900"}

{"sheet":"Volume","index":0,"n_rows":22,"n_cols":9,"rows_kept":22,"cut":false,"hidden":false,"merged":[]}
[]
[null,null,"Project:","Programmeren voor constructeurs",null,null,"Versie:","1.00"]
[null,null,"Onderdeel:","Parametrisch ontwerpen"]
[null,null,"Datum:","2020-09-09",null,null,"Klik op logo Vullings Advies"]
[]
[]
[]
[null,"Invoer",null,null,null,null,"Resultaten","X","Y"]
[null,"Straal r1 (kern)",3,"m"]
[null,"Straal r2",13.195,"m"]
[null,"Aantal woningen",8]
[null,"Oppervlak woning",65,"m2"]
[]
[null,"Deling gevel",6,"stuks"]
[null,"Balkonbreedte",3,"deling"]
[null,"Balkondiepte",1.75,"m"]
[null,"Balkonrandratio",0.85]
[null,"Balkonvorm","rechthoekig"]
[null,"Positie balkon",0]
[]
[null,"Bouwlagen",20,"stuks"]
[null,"Verdiepingshoogte",3.1,"m"]

{"sheet":"StripWall","index":1,"n_rows":25,"n_cols":8,"rows_kept":25,"cut":false,"hidden":false,"merged":[]}
[]
[null,null,"Project:",{"$f":"Project","v":"Programmeren voor constructeurs"},null,null,"Versie:",{"$f":"Versie","v":"1.00"}]
[null,null,"Onderdeel:",{"$f":"Onderdeel","v":"Parametrisch ontwerpen"}]
[null,null,"Datum:",{"$f":"Datum","v":"2020-09-09"},null,null,"Klik op logo Vullings Advies"]
[]
[]
[]
[null,"Invoer"]
[null,"Basis plaat"]
[null,"Aantal strips",15,"stuks"]
[null,"Aantal blokken",15,"stuks"]
[]
[null,"Strips"]
[null,"Breedte strip",20]
[null,"Hoogte strip",30]
[null,"Variant hoogte",20]
[null,"Lengte blok",20]
[null,"Variant lengte",10]
[null,"Gelijke lengte","ja"]
[null,"Variant type",1]
[]
[null,"Platte strips"]
[null,"Met platte strips","nee"]
[null,"Breedte platte strip",30]
[null,"Hoogte platte strip",5]

{"sheet":"Wapening","index":2,"n_rows":108,"n_cols":17,"rows_kept":108,"cut":false,"hidden":false,"merged":[]}
[]
[null,null,"Project:",{"$f":"Project","v":"Programmeren voor constructeurs"},null,null,"Versie:",{"$f":"Versie","v":"1.00"}]
[null,null,"Onderdeel:",{"$f":"Onderdeel","v":"Parametrisch ontwerpen"}]
[null,null,"Datum:",{"$f":"Datum","v":"2020-09-09"},null,null,"Klik op logo Vullings Advies"]
[]
[null,null,null,null,null,null,null,null,null,null,null,"Totaal",52.933977828648722,null,9710.5794307321175,183.44699999999992,0.99896091162222977]
["    Typen wapening",null,null,null,null,null,"Momenten",null,"Lengte","Wapening"]
["Nr","Wapening","Hoogte (mm)","Breedte (mm)","Mu (kNm)",null,"MEd (kNm)",null,"(m)","Type","Omschrijving","Mu (kNm)","Gewicht (kg/m3)",null,"Staal (kg)","Beton (m3)","uc"]
[1,"3x8",300,300,17.776639198484773,null,55.811999999999998,null,17.88,5,"2x16+1x12",59.976252426957572,44.938737580349986,null,72.315416514299201,1.6091999999999997,0.93056831231612824]
[2,"3x10",300,300,27.67350428730909,null,46.954999999999998,null,22.8,4,"2x12+1x16",49.85919763757304,37.266270188582929,null,76.470386426972169,2.052,0.94175201817960086]
[3,"3x12",300,300,39.702254150859439,null,32.473999999999997,null,12.52,3,"3x12",39.702254150859439,29.593802796815851,null,33.3462969914521,1.1268,0.81793844441694075]
[4,"2x12+1x16",300,300,49.85919763757304,null,73.938999999999993,null,14,7,"2x16+1x20",82.969049821815261,62.475805904389034,null,78.71951543953017,1.26,0.89116363461786963]
[5,"2x16+1x12",300,300,59.976252426957572,null,40.024000000000001,null,29.12,4,"2x12+1x16",49.85919763757304,37.266270188582929,null,97.667440910238142,2.6208,0.80274055533213395]
[6,"3x16",300,300,70.057013520227812,null,67.617999999999995,null,21.84,6,"3x16",70.057013520227812,52.611204972117065,null,103.41258449319331,1.9656,0.96518530554369708]
[7,"2x16+1x20",300,300,82.969049821815261,null,54.435000000000002,null,15.56,5,"2x16+1x12",59.976252426957572,44.938737580349986,null,62.932208107522122,1.4004000000000001,0.90760922527285248]
[8,"3x20",300,300,108.64412794276902,null,57.220999999999997,null,22.25,5,"2x16+1x12",59.976252426957572,44.938737580349986,null,89.989822004650847,2.0024999999999999,0.95406094386585627]
[9,"3x25",300,300,168.154973968024,null,28.257000000000001,null,15.24,3,"3x12",39.702254150859439,29.593802796815851,null,40.59085991611262,1.3715999999999999,0.71172281283148053]
[10,"4x25",300,300,224.20663195736532,null,49.899000000000001,null,17.760000000000002,5,"2x16+1x12",59.976252426957572,44.938737580349986,null,71.830078148431426,1.5984,0.83197929148323813]
[null,null,null,null,null,null,51.22,null,18.52,5,"2x16+1x12",59.976252426957572,44.938737580349986,null,74.903887798927357,1.6667999999999998,0.85400467564022231]
[null,null,null,null,null,null,41.978999999999999,null,24.35,4,"2x12+1x16",49.85919763757304,37.266270188582929,null,81.669031118279491,2.1915,0.84195097372295746]
[null,null,null,null,null,null,47.192999999999998,null,11.52,4,"2x12+1x16",49.85919763757304,37.266270188582929,null,38.637668931522775,1.0367999999999999,0.94652546041848373]
[null,null,null,null,null,null,45.414999999999999,null,23.34,4,"2x12+1x16",49.85919763757304,37.266270188582929,null,78.281527158137294,2.1006,0.91086503898682936]
[null,null,null,null,null,null,74.138000000000005,null,8.76,7,"2x16+1x20",82.969049821815261,62.475805904389034,null,49.255925375020311,0.78839999999999999,0.89356211935919649]
[null,null,null,null,null,null,151.20599999999999,null,26.8,9,"3x25",168.154973968024,128.44532463895771,null,309.81012302916599,2.4119999999999999,0.89920622882528001]
[null,null,null,null,null,null,51.02,null,22.38,5,"2x16+1x12",59.976252426957572,44.938737580349986,null,90.515605234340939,2.0141999999999998,0.85067002247489554]
[null,null,null,null,null,null,34.033999999999999,null,28.32,3,"3x12",39.702254150859439,29.593802796815851,null,75.428684568524233,2.5488,0.85723092373240628]
[null,null,null,null,null,null,19.251999999999999,null,19.239999999999998,2,"3x10",27.67350428730909,20.551251942233229,null,35.586547863171056,1.7315999999999998,0.69568348844164474]
[null,null,null,null,null,null,84.602999999999994,null,18.559999999999999,8,"3x20",108.64412794276902,82.205007768932916,null,137.31524497722555,1.6703999999999999,0.77871672958309091]
[null,null,null,null,null,null,44.369,null,22.6,4,"2x12+1x16",49.85919763757304,37.266270188582929,null,75.799593563577673,2.0340000000000003,0.88988596091173922]
[null,null,null,null,null,null,42.572000000000003,null,14.88,4,"2x12+1x16",49.85919763757304,37.266270188582929,null,49.906989036550257,1.3391999999999999,0.85384446636017408]
[null,null,null,null,null,null,33.604999999999997,null,22.92,3,"3x12",39.702254150859439,29.593802796815851,null,61.04609640927174,2.0628000000000002,0.84642549192065319]
[null,null,null,null,null,null,40.734999999999999,null,17.920000000000002,4,"2x12+1x16",49.85919763757304,37.266270188582929,null,60.103040560146546,1.6128,0.81700071260879659]
[null,null,null,null,null,null,45.38,null,24.48,4,"2x12+1x16",49.85919763757304,37.266270188582929,null,82.105046479485907,2.2031999999999998,0.91016306218699372]
[null,null,null,null,null,null,19.667000000000002,null,15.76,2,"3x10",27.67350428730909,20.551251942233229,null,29.149895754863614,1.4183999999999999,0.71067978221389094]
[null,null,null,null,null,null,29.928999999999998,null,26.48,3,"3x12",39.702254150859439,29.593802796815851,null,70.527950825371533,2.3832,0.75383629066190239]
[null,null,null,null,null,null,64.960999999999999,null,14.97,6,"3x16",70.057013520227812,52.611204972117065,null,70.883076458933331,1.3472999999999999,0.92725905281765364]
[null,null,null,null,null,null,79.497,null,26.15,7,"2x16+1x20",82.969049821815261,62.475805904389034,null,147.03680919597957,2.3534999999999999,0.95815246975502488]
[null,null,null,null,null,null,29.26,null,22.25,3,"3x12",39.702254150859439,29.593802796815851,null,59.261590100623735,2.0024999999999999,0.73698586203238559]
[null,null,null,null,null,null,51.076999999999998,null,20.75,5,"2x16+1x12",59.976252426957572,44.938737580349986,null,83.923092431303601,1.8674999999999999,0.85162039862701355]
[null,null,null,null,null,null,74.197999999999993,null,15.51,7,"2x16+1x20",82.969049821815261,62.475805904389034,null,87.209977461936646,1.3958999999999999,0.89428528058773704]
[null,null,null,null,null,null,39.661000000000001,null,15.84,3,"3x12",39.702254150859439,29.593802796815851,null,42.188925267140675,1.4256,0.99896091162222977]
[null,null,null,null,null,null,67.786000000000001,null,18.920000000000002,6,"3x16",70.057013520227812,52.611204972117065,null,89.586359826520948,1.7028000000000001,0.9675833523852384]
[null,null,null,null,null,null,26.228999999999999,null,9.18,2,"3x10",27.67350428730909,20.551251942233229,null,16.979444354673095,0.82619999999999993,0.9478019020535996]
[null,null,null,null,null,null,62.234999999999999,null,23,6,"3x16",70.057013520227812,52.611204972117065,null,108.90519429228232,2.0699999999999998,0.88834788799597719]
[null,null,null,null,null,null,108.25700000000001,null,29.5,8,"3x20",108.64412794276902,82.205007768932916,null,218.25429562651689,2.6549999999999998,0.99643673385667986]
[null,null,null,null,null,null,53.906999999999996,null,22.65,5,"2x16+1x12",59.976252426957572,44.938737580349986,null,91.607616557543452,2.0385,0.89880574091638932]
[null,null,null,null,null,null,118.337,null,26.52,9,"3x25",168.154973968024,128.44532463895771,null,306.57330084826424,2.3868,0.70373773197159617]
[null,null,null,null,null,null,24.314,null,9.99,2,"3x10",27.67350428730909,20.551251942233229,null,18.477630621261898,0.89910000000000001,0.87860213681540367]
[null,null,null,null,null,null,51.29,null,25.25,5,"2x16+1x12",59.976252426957572,44.938737580349986,null,102.12328115134535,2.2725,0.85517180424808681]
[null,null,null,null,null,null,42.722000000000001,null,30.24,4,"2x12+1x16",49.85919763757304,37.266270188582929,null,101.42388094524729,2.7215999999999996,0.85685293835946996]
[null,null,null,null,null,null,31.745000000000001,null,16.100000000000001,3,"3x12",39.702254150859439,29.593802796815851,null,42.881420252586167,1.4490000000000001,0.79957676658298293]
[null,null,null,null,null,null,53.451000000000001,null,27.18,5,"2x16+1x12",59.976252426957572,44.938737580349986,null,109.92913986905214,2.4461999999999997,0.89120273169944408]
[null,null,null,null,null,null,36.722000000000001,null,13.47,3,"3x12",39.702254150859439,29.593802796815851,null,35.876567130579858,1.2122999999999999,0.92493488809136237]
[null,null,null,null,null,null,16.68,null,16.399999999999999,1,"3x8",17.776639198484773,13.152801243029266,null,19.413534634711194,1.4759999999999998,0.93831009414995337]
[null,null,null,null,null,null,71.406999999999996,null,15.24,7,"2x16+1x20",82.969049821815261,62.475805904389034,null,85.691815378459992,1.3715999999999999,0.86064623077345126]
[null,null,null,null,null,null,66.438000000000002,null,16.84,6,"3x16",70.057013520227812,52.611204972117065,null,79.737542255740621,1.5155999999999998,0.94834188129953789]
[null,null,null,null,null,null,91.593999999999994,null,31.68,8,"3x20",108.64412794276902,82.205007768932916,null,234.38291815078153,2.8512,0.84306443186924374]
[null,null,null,null,null,null,58.856000000000002,null,18.52,5,"2x16+1x12",59.976252426957572,44.938737580349986,null,74.903887798927357,1.6667999999999998,0.98132173349240392]
[null,null,null,null,null,null,47.097000000000001,null,16.68,4,"2x12+1x16",49.85919763757304,37.266270188582929,null,55.944124807100685,1.5011999999999999,0.94460003833893436]
[null,null,null,null,null,null,33.073999999999998,null,15.48,3,"3x12",39.702254150859439,29.593802796815851,null,41.230086056523845,1.3932,0.83305093646135053]
[null,null,null,null,null,null,65.081000000000003,null,13.17,6,"3x16",70.057013520227812,52.611204972117065,null,62.360061253450354,1.1853,0.92897194341875466]
[null,null,null,null,null,null,92.873000000000005,null,28.4,8,"3x20",108.64412794276902,82.205007768932916,null,210.11599985739252,2.5559999999999996,0.8548368122474429]
[null,null,null,null,null,null,84.103999999999999,null,26.28,8,"3x20",108.64412794276902,82.205007768932916,null,194.43128437508014,2.3652000000000002,0.77412375240660836]
[null,null,null,null,null,null,8.6969999999999992,null,13.2,1,"3x8",17.776639198484773,13.152801243029266,null,15.625527876718767,1.1879999999999999,0.48923758326271849]
[null,null,null,null,null,null,47.54,null,14.25,4,"2x12+1x16",49.85919763757304,37.266270188582929,null,47.793991516857602,1.2825,0.95348505897685498]
[null,null,null,null,null,null,22.495000000000001,null,29.75,2,"3x10",27.67350428730909,20.551251942233229,null,55.025977075329472,2.6774999999999998,0.81287139375102846]
[null,null,null,null,null,null,36.472999999999999,null,23.58,3,"3x12",39.702254150859439,29.593802796815851,null,62.803968295402591,2.1221999999999999,0.91866320389293221]
[null,null,null,null,null,null,18.108000000000001,null,18.399999999999999,2,"3x10",27.67350428730909,20.551251942233229,null,34.032873216338224,1.6559999999999999,0.65434430753694706]
[null,null,null,null,null,null,54.954000000000001,null,21.75,5,"2x16+1x12",59.976252426957572,44.938737580349986,null,87.967578813535098,1.9575,0.91626265023687581]
[null,null,null,null,null,null,48.078000000000003,null,8.26,4,"2x12+1x16",49.85919763757304,37.266270188582929,null,27.703745258192548,0.74339999999999995,0.96427544521432984]
[null,null,null,null,null,null,51.466000000000001,null,13.47,5,"2x16+1x12",59.976252426957572,44.938737580349986,null,54.479231568658292,1.2122999999999999,0.85810629903357449]
[null,null,null,null,null,null,35.78,null,19.649999999999999,3,"3x12",39.702254150859439,29.593802796815851,null,52.336640246168827,1.7684999999999997,0.90120827558163896]
[null,null,null,null,null,null,57.320999999999998,null,19.5,5,"2x16+1x12",59.976252426957572,44.938737580349986,null,78.867484453514223,1.7549999999999999,0.95572827044851982]
[null,null,null,null,null,null,64.19,null,18.88,6,"3x16",70.057013520227812,52.611204972117065,null,89.396959488621306,1.6991999999999998,0.91625373070558014]
[null,null,null,null,null,null,45.149000000000001,null,13.59,4,"2x12+1x16",49.85919763757304,37.266270188582929,null,45.58037506765578,1.2230999999999999,0.90553001530807797]
[null,null,null,null,null,null,73.748999999999995,null,29.16,7,"2x16+1x20",82.969049821815261,62.475805904389034,null,163.96150501547856,2.6244000000000001,0.88887362406082404]
[null,null,null,null,null,null,109.977,null,28.36,9,"3x25",168.154973968024,128.44532463895771,null,327.84384660847559,2.5524,0.65402168847478159]
[null,null,null,null,null,null,68.325999999999993,null,21.6,6,"3x16",70.057013520227812,52.611204972117065,null,102.27618246579559,1.944,0.97529136009019257]
[null,null,null,null,null,null,57.143000000000001,null,18.149999999999999,5,"2x16+1x12",59.976252426957572,44.938737580349986,null,73.4074278375017,1.6334999999999997,0.95276042913137893]
[null,null,null,null,null,null,118.554,null,57.12,9,"3x25",168.154973968024,128.44532463895771,null,660.31172490395375,5.1407999999999996,0.70502820822025747]
[null,null,null,null,null,null,26.853999999999999,null,25.98,2,"3x10",27.67350428730909,20.551251942233229,null,48.052937291329741,2.3382000000000001,0.97038668183107879]
[null,null,null,null,null,null,57.878,null,19.25,5,"2x16+1x12",59.976252426957572,44.938737580349986,null,77.856362857956356,1.7324999999999999,0.96501527951395527]
[null,null,null,null,null,null,57.021999999999998,null,25.6,5,"2x16+1x12",59.976252426957572,44.938737580349986,null,103.53885138512638,2.3039999999999998,0.95074296396635605]
[null,null,null,null,null,null,29.814,null,9.7200000000000006,3,"3x12",39.702254150859439,29.593802796815851,null,25.888658686654505,0.87480000000000002,0.75093972968672396]
[null,null,null,null,null,null,75.775000000000006,null,28.9,7,"2x16+1x20",82.969049821815261,62.475805904389034,null,162.49957115731587,2.601,0.91329236821121573]
[null,null,null,null,null,null,46.835999999999999,null,16.12,4,"2x12+1x16",49.85919763757304,37.266270188582929,null,54.065904789596111,1.4508000000000001,0.93936529706015948]
[null,null,null,null,null,null,35.86,null,23.58,3,"3x12",39.702254150859439,29.593802796815851,null,62.803968295402591,2.1221999999999999,0.90322327452089357]
[null,null,null,null,null,null,83.051000000000002,null,24.95,8,"3x20",108.64412794276902,82.205007768932916,null,184.59134494513887,2.2454999999999998,0.7644315580842912]
[null,null,null,null,null,null,84.54,null,23,8,"3x20",108.64412794276902,82.205007768932916,null,170.16436608169113,2.0699999999999998,0.77813685470910621]
[null,null,null,null,null,null,33.478999999999999,null,13.88,3,"3x12",39.702254150859439,29.593802796815851,null,36.968578453782364,1.2492000000000001,0.84325186859132717]
[null,null,null,null,null,null,57.146000000000001,null,19.559999999999999,5,"2x16+1x12",59.976252426957572,44.938737580349986,null,79.110153636448118,1.7603999999999997,0.9528104489288588]
[null,null,null,null,null,null,31.581,null,12.81,3,"3x12",39.702254150859439,29.593802796815851,null,34.118695244448993,1.1529,0.79544601875751086]
[null,null,null,null,null,null,110.953,null,47.97,9,"3x25",168.154973968024,128.44532463895771,null,554.5370000637721,4.3172999999999995,0.65982585814618011]
[null,null,null,null,null,null,67.366,null,13.38,6,"3x16",70.057013520227812,52.611204972117065,null,63.354413027423377,1.2041999999999999,0.96158823528138515]
[null,null,null,null,null,null,50.033999999999999,null,18.559999999999999,5,"2x16+1x12",59.976252426957572,44.938737580349986,null,75.065667254216621,1.6703999999999999,0.83423018236983371]
[null,null,null,null,null,null,40.154000000000003,null,21.5,4,"2x12+1x16",49.85919763757304,37.266270188582929,null,72.11023281490796,1.9349999999999998,0.80534789773152371]
[null,null,null,null,null,null,23.646000000000001,null,7.04,2,"3x10",27.67350428730909,20.551251942233229,null,13.021273230598974,0.63359999999999994,0.85446352418923399]
[null,null,null,null,null,null,33.92,null,7.92,3,"3x12",39.702254150859439,29.593802796815851,null,21.094462633570338,0.71279999999999999,0.85435955024396848]
[null,null,null,null,null,null,62.558,null,16.239999999999998,6,"3x16",70.057013520227812,52.611204972117065,null,76.896537187246295,1.4615999999999998,0.89295841853060731]
[null,null,null,null,null,null,58.601999999999997,null,26.52,5,"2x16+1x12",59.976252426957572,44.938737580349986,null,107.25977885677935,2.3868,0.97708672397243868]
[null,null,null,null,null,null,52.408999999999999,null,15.72,5,"2x16+1x12",59.976252426957572,44.938737580349986,null,63.579325928679168,1.4148000000000001,0.87382918870809079]
[null,null,null,null,null,null,46.884,null,32.130000000000003,4,"2x12+1x16",49.85919763757304,37.266270188582929,null,107.76287350432526,2.8917000000000002,0.94032800809993422]
[null,null,null,null,null,null,61.472000000000001,null,13.92,6,"3x16",70.057013520227812,52.611204972117065,null,65.911317589068261,1.2527999999999999,0.87745675859064376]
[null,null,null,null,null,null,66.858999999999995,null,20.76,6,"3x16",70.057013520227812,52.611204972117065,null,98.298775369903538,1.8684000000000001,0.95435127249173357]
[null,null,null,null,null,null,40.697000000000003,null,16.440000000000001,4,"2x12+1x16",49.85919763757304,37.266270188582929,null,55.139173371027304,1.4796,0.81623856636897496]
[null,null,null,null,null,null,106.965,null,46.98,8,"3x20",108.64412794276902,82.205007768932916,null,347.57921384860214,4.2281999999999993,0.98454469675845213]
[null,null,null,null,null,null,32.933999999999997,null,7.3,3,"3x12",39.702254150859439,29.593802796815851,null,19.443128437508012,0.65699999999999992,0.82952468831765491]
[null,null,null,null,null,null,33.683999999999997,null,11.94,3,"3x12",39.702254150859439,29.593802796815851,null,31.801500485458309,1.0746,0.84841530337316717]

{"sheet":"Toelichting1","index":3,"n_rows":109,"n_cols":18,"rows_kept":109,"cut":false,"hidden":false,"merged":[[5,1,5,3]]}
[]
[null,null,"Project:",{"$f":"Project","v":"Programmeren voor constructeurs"},null,null,"Versie:",{"$f":"Versie","v":"1.00"}]
[null,null,"Onderdeel:",{"$f":"Onderdeel","v":"Parametrisch ontwerpen"}]
[null,null,"Datum:",{"$f":"Datum","v":"2020-09-09"}]
[]
[]
[null,"Toelichting"]
[]
[null,"Sheet: Volume"]
[null,"Sheet \"Volume\" laat een voorbeeld zien van parametrisch ontwerpen door enkele relaties tussen parameters te verwerken in VBA-code."]
[null,"Met behulp van VBA code wordt een systeem van eisen en relaties geformuleerd die passen bij een ontwerp dat men wil onderzoeken. "]
[null,"In dit voorbeeld zijn eisen en relaties opgesteld voor het genereren van een plattegrond voor een woontoren met een ronde plattegrond."]
[null,"Op basis van een enkele invoerwaarden wordt een plattegrond gegenereerd en worden gegevens bepaald, zoals oppervlak en inhoud."]
[null,"Met behulp van de VBA-code kunnen oneindig veel varianten worden opgesteld en kan een optimale variant worden bepaald."]
[]
[null,"Figuur A1 laat een mogelijke variant zien van een plattegrond, zoals deze is geformuleerd in de VBA-code. Figuur A2 geeft een"]
[null,"overzicht van de VBA-module die is opgesteld, inclusief alle mogelijke invoerwaarden, variabelen die de uitkomst van de plattegrond"]
[null,"beïnvloeden. "]
[]
[null,"Straal R1"]
[null,"Dit is de straal van de binnenste cirkel van de plattegrond. Op deze cirkel worden de benodigde knopen geplaatst. Deze binnenste"]
[null,"cirkel bevat bijvoorbeeld de kern van de woontoren. De kern met de hal, trappen en liften. Aan de kern zijn de verschillende woningen"]
[null,"\"verankerd\". De voordeur van het appartement sluit aan op de kern. "]
[null,"De architect kan de verschillende onderdelen in de kern vormgeven en daaruit bepalen hoe groot de cirkel \"R1\" minimaal moet zijn."]
[null,"Deze variabele kan eenvoudig worden aangepast en verschillende varianten kunnen worden bepaald. Daarbij kan de invloed van de"]
[null,"kern nader worden onderzocht."]
[]
[null,"Straal R2"]
[null,"Dit is de buitenste cirkel in de plattegrond, de gevel van het gebouw. Tussen de twee cirkels zijn de appartementen gelegen."]
[]
[null,"Woning"]
[null,"Geef het gewenste aantal woningen in de plattegrond. De cirkels worden gelijkmatig verdeeld. In het voorbeeld zijn het er 7 stuks."]
[null,"Door meer appartementen te kiezen wordt de ruimte voor de voordeur beperkter. Het kan zijn dat daardoor de straal van de kern R1 groter"]
[null,"moet worden. Dus dit kan mogelijk ook een eis zijn die in de VBA-code kan worden verwerkt, of de gebruiker kan deze handmatig controleren.",null,null,null,null,null,null,null,"Figuur A1: Plattegrond van één bouwlaag van een woontoren",null,null,null,null,null,null,null,"Figuur A2: Invoerformulier van de VBA-module opgesteld voor het genereren van varianten van de plattegronden"]
[]
[null,"Oppervlak"]
[null,"Hier kan een gewenste oppervlak van één appartement worden opgegeven. De VBA-code \"controleerd\" deze en geeft aan als er afwijkingen"]
[null,"afwijkingen zijn. De gebruiker kan aangeven of de opgegeven waarde \"belangrijk\" is bij het opstellen van varianten. Dit is een van de relaties"]
[null,"die in de VBA-code is verwerkt. Als het oppervlak van de variant niet voldoet, wijzig de straal van de buiten cikrle R1 (gevel)."]
[null,"Men kan aangeven dat alle oppervlakken toelaatbaar zijn, of alleen waarden kleiner dan de opgegeven waarde, of alleen groter, of het opervlak"]
[null,"moet exact gelijk zijn aan de opgegeven waarde. Dan wordt bij elke variant de straal R2 zodanig aangepast zodat het oppervlak van een woning"]
[null,"gelijk is aan de waarde. Dus de gevolgen van aanpassingen worden direct zichtbaar."]
[]
[null,"Deling gevel"]
[null,"De gevel in dit ontwerp wordt niet rond, maar bestaat uit segmenten. Het aantal segmenten heeft invloed op het uiterlijk van de toren, maar ook"]
[null,"op de mogelijke afmetingen van een balkon. In de VBA-code is een relatie vastgelegd aan de deling van de gevel en de afmetingen van de balkons."]
[null,"Uiteraard heeft de deling ook invloed op het oppervlak van de woning."]
[]
[null,"Balkonbreedte"]
[null,"De balkonbreedte wordt aangegeven in een aantal gevelsegmenten. Een balkon is altijd x-segmenten breedt."]
[]
[null,"Balkondiepte"]
[null,"Dit is een maat voor de diepte van een balkon, een maat voor de uitkraging. Deze maat, in relatie tot de breedte heeft grote invloed op het"]
[null,"uiterlijk van de toren. Variant zijn mogelijk. Gewenste relaties, bijvoorbeeld tussen breedte en diepte kunnen worden verwerkt in de VBA-code."]
[null,"Op dit moment is dit enkel een waarde die alleen door de gebruiker kan worden gewijzigd."]
[]
[null,"Rand ratio"]
[null,"Dit is de verhouding tussen de breedte voor en de breedte achter (gevelzijde) van de balkon. "]
[]
[null,"Balkonvorm"]
[null,"In dit geval heeft men de keuze uit twee verschillende balkonvormen. Een ronde vorm of een rechthoekige vorm. Voor de ronde vorm worden"]
[null,"alleen de locaties van de benodigde knopen bepaald. "]
[]
[null,"Bouwlagen"]
[null,"Het aantal bouwlagen kan hier worden aangegeven. In verschillende situaties worden meerdere plattegronden boven elkaar gegenereerd."]
[null,"Deze kunnen worden gebruikt voor het visueel beoordelen van de woontoren. Teven wordt met behulp van deze waarde ook enkele basis"]
[null,"gegevens van de toren bepaald. Enkele zijn weergegeven in figuur A2. De inhoud en oppervlak van de hele toren geven de ontwerpen"]
[null,"een indicatie van bijvoorbeeld kosten, materialen enz. Verfijningen van deze berekende resultaten kunnen eenvoudig in de VBA-code worden"]
[null,"opgenomen. Ook hier kan men ervoor kiezen om aanvullende relaties te leggen."]
[null,"Uiteraard is het hier ook mogelijk om gewichten en krachten te berekenen. Allerlei gegevens kunnen worden gekoppeld mbv de VBA-code."]
[]
[null,"Verdiepingshoogte"]
[null,"Deze maat is natuurlijk direct gerelateerd aan de voorgaanden \"bouwlagen\". Deze waarde is nodig voor de bepaling van de inhoud en totale "]
[null,"hoogte van de toren."]
[]
[]
[null,"Varianten"]
[null,"Figuur A3 laat de opties zien van de mogelijke variaties die in de VBA-code zijn verwerkt. Met behulp van deze gegevens kunnen met een klik"]
[null,"op de knop een hele serie varianten worden berekend. De gewenste \"controle\" getallen worden zichtbaar gemaakt, zoals de inhoud van de "]
[null,"woningen, de verdieping en gebouw. In dit geval is deze overal hetzelfde, omdat er hier is gekozen voor het vastleggen van de minimale oppervlak"]
[null,"van de woningen. Deze moet exact 85 m2 zijn. De variatie in de straal R2 zijn zichtbaar, evenzo de variaties in de andere variabelen, zoals de"]
[null,"deling van de gevel en de afmetingen van de balkons. "]
[]
[null,"De gewenste variabelen in het model worden vastgelegd door de gebruiker in de VBA-code, in de relaties tussen de verschillende onderdelen."]
[null,"Men is volledig vrij in de vorm van de relaties, de hoeveelheid, de aard en de randvoorwaarden voor deze variabelen."]
[null,"De eigen fantasie is de enige beperking."]
[]
[]
[null,"Visualisatie"]
[null,"Excel heeft beperkte middelen om gegevens grafisch weer te geven. Er zijn mogelijjkheden om objecten 3D visueel weer te geven, direct vanuit"]
[null,"Excel zelf, maar dit valt buiten de scope van dit voorbeeld."]
[null,"In dit geval is ervoor gekozen om een eenvoudige koppeling te maken naar grafische pakketten vie DXF-bestanden. In de VBA-code is een DXF-"]
[null,"generator opgenomen, die alle gegevens van het model omzet naar eenvoudige DXF-code. Deze kunnen vervolgens worden ingelezen door"]
[null,"bijvoorbeeld AutoCad. Door twee vensters naast elkaar zichtbaar te maken, kunnen snel en eenvoudig de gevolgen van aanpassingen in het model"]
[null,"zichtbaar worden gemaakt. Links Excel met de module en rechts Autocad met een weergave van de DXF. Direct koppeling vanuit Excel naar Autocad"]
[null,"is ook prima mogelijk. Ook dit valt buiten de scope van dit voorbeeld. ",null,null,null,null,null,null,null,"Figuur A3: Mogelijke varianten die automatisch worden gegenereerd"]
[]
[]
[null,"Slot"]
[null,"Het betreft hier een eenvoudig voorbeeld, maar het laat wel zien dat ook Excel prima kan worden gebruikt voor parametrisch ontwerpen."]
[null,"Werkblad \"Analyse\" laat nog een voorbeeld zien. Een heel andere aanpak voor parametrisch ontwerpen."]
[]
[null,"In dit voorbeeld is ervoor gekozen om de vorm van een plattegrond, een woontoren nader te onderzoeken en parametrisch te maken."]
[null,"Dit zelfde principe is natuurlijk ook mogelijk met allerlei andere \"problemen\", in welke vorm dan ook. Dit kunnen ook optimalisaties zijn"]
[null,"van een probleem. Gebruik VBA-code (of Excel zelf) voor het automatisch zoeken naar de beste oplossing. "]
[null,"Voorwaarden voor alle \"problemen\" is dat men relaties en voorwaarden kan formuleren en kan verwerken in Excel / VBA."]
[null,"Het gebruik van VBA heeft grote voordelen. De belangrijkste zijn, leesbaarheid en hergebruik. Delen van VBA-code kunnen voor elk probleem"]
[null,"worden hergebruikt. Denk aan de DXF-generator, de verwerking van invoergegevens enz."]
[null,"De mate van uitwerking is natuurlijk afhankelijk van het probleem en hoevaak deze voorkomt."]

{"sheet":"Toelichting2","index":4,"n_rows":192,"n_cols":24,"rows_kept":192,"cut":false,"hidden":false,"merged":[[5,1,5,3]]}
[]
[null,null,"Project:",{"$f":"Project","v":"Programmeren voor constructeurs"},null,null,"Versie:",{"$f":"Versie","v":"1.00"}]
[null,null,"Onderdeel:",{"$f":"Onderdeel","v":"Parametrisch ontwerpen"}]
[null,null,"Datum:",{"$f":"Datum","v":"2020-09-09"}]
[]
[]
[null,"Toelichting"]
[]
[null,"Sheet: Wapening"]
[null,"In de sheet \"Wapening\" wordt op een andere wijze gebruik gemaakt van VBA-code om parametrisch te ontwerpen."]
[null,"In deze sheet wordt gebruik gemaakt van de rekenwaarde van de optredende momenten in gelijkvormige elementen"]
[null,"en er wordt een bijpassende wapening aan toegekend. De momenten kunnen worden overgenomen uit een andere"]
[null,"berekening, bijvoorbeeld een 2D / 3D raamwerkberekening. Een veel gevallen kan deze software ook de benodigde"]
[null,"wapening berekenen en/of controleren, nadat deze door de gebruiker is ingevoerd. Bij de berekening van de wapening"]
[null,"wordt standaard een aantal generieke basiseisen verwerkt. Dit betekent dat voor elke situatie andere wapening ontstaat."]
[null,"Als de gebruiker op voorhand wapening in de verschillende elementen verwerkt is dit vaak een tijdrovend traject, waarbij"]
[null,"de uitkomt mogelijk niet optimaal is. Hier is een duidelijke balance tussen engineeringtijd vs productietijd, productiekosten enz."]
[]
[null,"In de sheet wapening is een eenvoudig voorstel opgenomen die het laatste proces zal vereenvoudigen. De rekenresultaten (Med)"]
[null,"wordt gekoppeld aan deze rekensheet. Vervolgens wordt een analyse uitgevoerd op de rekenresultaten en wordt gekeken naar de"]
[null,"verdeling van de waarden over de verschillende gelijkvormige elementen. Vervolgens wordt op basis van deze voorstudie een aantal"]
[null,"basis configuraties (typen) wapening samengesteld. Deze wapening moet voldoen aan de basis eisen van sterkte, stijfheid, detaillering"]
[null,"enz. Kennis en het gebruik van de rekensoftware kan hierbij zeker helpen. Naast de basis eisen kunnen ook eigen wensen worden verwerkt"]
[null,"in de keuze, zoals passing in relatie tot instortvoorzieningen, eenvoudige productie, wensen vanuit de productie (gebruik van specifieke "]
[null,"vormen van wapening), enz. Wat men maar wil. "]
[null,"Als de gewenste configuraties voor de verschillende situaties (Med) zijn opgesteld, zal de VBA-code de configuraties toekennen aan de"]
[null,"betreffende elementen. Een snelle controle met de rekensoftware en de constructie is optimaal gewapend.",null,null,null,null,null,null,null,"Figuur C1: Overzicht van de sheet \"Wapening\""]
[null,"Enkele kengetallen zijn ingebouwd in het systeem, zodat het eenvoudig mogelijk is om een keuzeset eenvoudig te beoordelen. In dit geval"]
[null,"wordt er gebruik gemaakt van de hoeveelheid toegepaste wapening voor alle elementen (kg/m3). Door eenvoudig met wat varianten te werken"]
[null,"wordt een optimale situatie verkregen."]
[]
[null,"In sheet Wapening is een heel eenvoudig voorbeeld verwerkt en zijn de tools voor het vinden van de juiste wapening erg eenvoudig,"]
[null,"maar het geeft een goed beeld van wat er mogelijk is en een goede basis voor de gebruiker om dit naar eigen behoefte aan te passen."]
[null,"Mogelijke aanvullingen kunnen zijn:"]
[null,"- Maak een standaard bibliotheek met typen wapening voor verschillende situaties en/of verschillende leveranciers."]
[null,"- Voeg eigen voorwaarden toe aan het vormen van typen wapening."]
[null,"- Voeg extra slectiemogelijkheden / criteria toe aan het systeem."]
[null,"- Aanvullen van de applicatie met meer type / accurate berekeningen van gewenste gegevens."]
[null,"- Toevoegen van eigen kengetallen. Getallen die helpen bij het opstellen van de juiste, meest optimale configuraties."]
[null,"- Uitbreiding van de mogelijkheden, buigwapening, dwarskracht, stekken, verankeringen enz."]
[null,"- Automatiseer de wisselwerking tussen de Excelsheet en de rekensoftware, door een directe koppeling of het gebruik van"]
[null,"  specifieke files (dxf, xml of txt-bestanden)."]
[]
[null,"De parameters die hier worden gebruikt zijn de rekenresultaten uit de rekensoftware. Deze kan alles zijn, wat maar wenselijk is."]
[null,"Andere parameters zijn de verschillende wapeningconfiguraties die kunnen worden samengesteld. Parameters zijn de selectie"]
[null,"mogelijkheden en de criteria voor het toekennen van een wapeningtype aan een element met een specifieke Med, of andere kracht"]
[null,"of eigenschap (lengte / doorsnede enz)."]
[null,null,null,null,null,null,null,null,null,"Figuur C2: Overzicht van de VBA applicatie"]
[]
[]
[null,"Toelichting: informatie"]
[null,"In figuur C3 is een overzicht gegeven van de informatie die door de gebruiker kan worden opgegeven en informatie die door"]
[null,"de applicatie (VBA-code) wordt gegenereerd. De belangrijkste info zijn de gegevens Wapening (B), Hoogte balk (C), Breedte balk (D)."]
[null,"Deze informatie kan door de gebruiker in de sheet worden aangegeven / ingevoerd of met behulp van het invoerformulier, de applicatie zelf."]
[null,"Bij het opstarten van de applicatie (klik op VA-logo) en deze invoergegevens worden ook automatisch overgenomen in het formulier."]
[null,"De gebruiker kan dit vervolgens naar hartenlust wijzigen. "]
[null,"De volgende informatiegroep is afkomstig van de rekensoftware en betreft de momenten in de verschillende elementen in de constructie."]
[null,"In kolom (G) zijn de maximale momenten per element aangegeven.  In kolom (I) zijn de lengte van betreffende elementen weergegeven."]
[null,"Indien deze niet worden opgegeven, wordt door de applicatie een defaultwaarde van 1 m toegepast. Al deze informatie kan worden overgenomen"]
[null,"uit de rekensoftware zelf. De keuze is aan de gebruiker."]
[null,"Ook de momenten (en lengte) wordt automatisch in de applicatie opgenomen op het moment dat deze wordt gestart. De momenten worden NIET"]
[null,"door de applicatie gewijzigd, en kunnen daar ook niet worden ingevoerd. Indien dit wenselijk is, moet de applicatie worden aangepast."]
[]
[null,"Gebruik de eenheden die zijn aangegeven."]
[]
[]
[]
[null,null,null,null,null,null,null,null,null,"Figuur C3: De benodigde informatie in de sheet zelf"]
[]
[null,"Toelichting: formulier - invoer"]
[null,"Het formulier bevat twee vlakken; links de invoer en selectie van informatie, rechts uitvoer van de resultaten."]
[null,"De gewenste / mogelijke invoer is:"]
[null,"- Breedte = de breedte van de balk, van alle elementen. De afmeting is van toepassing op alle elementen."]
[null,"- Hoogte = de hoogte van de balk, van alle elementen."]
[null,"- c = de maat voor de dekking + beugeldiameter (indien van toepassing) t.b.v. de bepaling van de maat \"d\", de inwendige hefboomsarm."]
[null,"   voor de bepaling van Mu wordt gebruik gemaakt van Mu = fs * As * d"]
[null,"- Keuze = opgave van een gewenste wapeningconfiguratie. Deze kunnen op de volgende wijze worden opgegeven:"]
[null,"  3x12  = 3 staven rond 12 mm"]
[null,"  1x16  = 1 staaf rond 16 mm"]
[null,"  10-150  = staven rond 10 mm met een hart-op-hart-afstand van 150 mm."]
[null,"  2x12+1x16 = 2 staven rond 12 mm en 1 staaf rond 16 mm"]
[null,"  10-200+3x8  = staven rond 10 mm met een hart-op-hart-afstand van 200 mm plus 3 staven rond 8 mm"]
[null,"  een opgaven van 10-100 wordt op basis van de breedte omgezet in een aantal staven (= Breedte / hoh = 300 mm / 100 mm = 3 stuks)"]
[]
[null,"Ingevoerde wapening kan worden aangepast in het formulier. Met de knop \"Opslaan\" wordt deze informatie op de sheet geplaatst."]
[null,"Met de knop \"Lees\" wordt de informatie in het formulier verwijderd en wordt de informatie in de sheet opnieuw ingelezen."]
[null,"Let op. De gegevens in het formulier worden ALLEEN opgeslagen op het formulier als de knop \"Opslaan\" wordt gebruikt. "]
[]
[null,null,null,null,null,null,null,null,null,"Figuur C4: Het invoerformulier waarin wapening kan worden opgegeven en de verdeling wordt gegenereerd.",null,null,null,null,null,null,null,null,null,null,null,null,null,"Figuur C5: Overzicht van de kengetallen"]
[null,"Toelichting: formulier - analyse"]
[null,"Met de knop \"Analyse\" worden de opgegeven Med van alle elementen beoordeeld wordt wordt voor elk element de bijbehorende wapening"]
[null,"gekozen op basis van Mu. Daarvoor kan in de lijst met wapening een selectie worden gemaakt welke configuraties er gebruikt mogen worden."]
[null,"Dit kunnen ze allemaal zijn, 1 of enkele configuraties. Hiermee kan men spelen. Bij elke berekening wordt voor elk element de bijpassende"]
[null,"achtergrond info bepaald, evenals enkele kengetallen (staal kg/m3). Deze getallen laten zien wat de gevolgen zijn voor de verschillende keuzes."]
[null,"Zie de verschillen tussen figuur C4(C5) en C6(C7). Dit voorbeeld laat zien dat het reduceren van het aantal wapeningconfiguraties in de constructie "]
[null,"meer wapening wapening zal opleveren; 34,57 kg/m3 vs 28,73 kg/m3. Dit is natuurlijjk logisch, meer verschillende typen, hoe meer men tot de "]
[null,"werkelijk benodigde hoeveelheid wapening komt. Dit is echter niet altijd wenselijk (om welke reden dan ook). Minder configuraties kan uiteindelijk een"]
[null,"goedkopere constructie opleveren, indien alle factoren worden beschouwd zoals, faalkosten door maken van fouten,  tijd (planning) en manuren."]
[]
[null,"De optie \"Zoek type\" kan helpen bij het samenstellen van de benodigde wapeningconfiguraties. Men kan een verdeling maken van de opgegeven Med"]
[null,"van de verschillende elementen. Op basis van deze verdeling kan de gebruiker configuraties opstellen die voldoen aan de eisen en wensen."]
[null,"Er zijn in de applicatie enkele eenvoudige verdelingen opgenomen, op basis van enkele hele eenvoudige parameters. Dit kan men zelf aanvullen"]
[null,"en/of complexer maken. Geheel naar eigen keuze. "]
[]
[null,"HET GROTE VOORDEEL"]
[null,"Als de applicatie eenmaal naar eigen wensen is ingericht, kan deze applicatie bij elk project worden ingezet. "]
[null,"De mogelijkheden zijn onbeperkt."]
[]
[null,null,null,null,null,null,null,null,null,"Figuur C6: Het invoerformulier waarin wapening kan worden opgegeven en de verdeling wordt gegenereerd.",null,null,null,null,null,null,null,null,null,null,null,null,null,"Figuur C7: Overzicht van de kengetallen"]
[]
[]
[]
[]
[]
[]
[]
[]
[]
[]
[]
[]
[]
[]
[]
[]
[]
[]
[]
[]
[]
[]
[]
[]
[]
[]
[]
[]
[]
[]
[]
[]
[]
[]
[]
[]
[]
[]
[]
[]
[]
[]
[]
[]
[]
[]
[]
[]
[]
[]
[null,null,null,null,null,null,null,null,null,null,"Figuur C1: De tekst \"Hoogte\" in cel B2",null,null,null,null,null,null,null,"Figuur C2: De waarde \"200\" in cel C2"]
[]
[]
[]
[]
[]
[]
[]
[]
[]
[]
[]
[]
[]
[]
[]
[null,null,null,null,null,null,null,null,null,null,"Figuur C3: Uiteindelijke opzet van de rekensheet",null,null,null,null,null,null,null,"Figuur C4: Cel C2 heeft de naam \"Hoogte\" gekregen"]
[]
[]
[]
[]
[]
[]
[]
[]
[]
[]
[]
[]
[]
[]
[]
[null,null,null,null,null,null,null,null,null,null,"Figuur C5: De nieuwe formule is \"Hoogte*Breedte\"",null,null,null,null,null,null,null,"Figuur C6: Invoeren, bewerken en beheren van celnamen, zie \"Gedefineerde namen\" in het lint"]

{"sheet":"Hulp","index":5,"n_rows":263,"n_cols":17,"rows_kept":263,"cut":false,"hidden":false,"merged":[]}
[]
[null,null,"Project:",{"$f":"Project","v":"Programmeren voor constructeurs"},null,null,"Versie:",{"$f":"Versie","v":"1.00"}]
[null,null,"Onderdeel:",{"$f":"Onderdeel","v":"Parametrisch ontwerpen"}]
[null,null,"Datum:",{"$f":"Datum","v":"2020-09-09"},null,null,"Klik op logo voor formulier Fonts"]
[]
[]
[null,null,null,"Font","Font","Font","Font","Font",null,null,null,null,"Teken+font","Teken+font","Teken+font","Teken+font","Teken+font"]
[null,null,"ASCII","Wingdings","Wingdings 2","Wingdings 3","Symbol","MT Extra",null,"Nr","Teken",null,"Wingdings","Wingdings 2","Wingdings 3","Symbol","MT Extra"]
[null,null,0,0,0,0,0,0,null,1,{"$f":"CHAR(J9)","v":"\u0001"},null,{"$f":"CHAR(J9)","v":"\u0001"},{"$f":"CHAR(J9)","v":"\u0001"},{"$f":"CHAR(J9)","v":"\u0001"},{"$f":"CHAR(J9)","v":"\u0001"},{"$f":"CHAR(J9)","v":"\u0001"}]
[null,null,1,1,1,1,1,1,null,2,{"$f":"CHAR(J10)","v":"\u0002"},null,{"$f":"CHAR(J10)","v":"\u0002"},{"$f":"CHAR(J10)","v":"\u0002"},{"$f":"CHAR(J10)","v":"\u0002"},{"$f":"CHAR(J10)","v":"\u0002"},{"$f":"CHAR(J10)","v":"\u0002"}]
[null,null,2,2,2,2,2,2,null,3,"\u0003",null,"\u0003","\u0003","\u0003","\u0003","\u0003"]
[null,null,3,3,3,3,3,3,null,4,"\u0004",null,"\u0004","\u0004","\u0004","\u0004","\u0004"]
[null,null,4,4,4,4,4,4,null,5,"\u0005",null,"\u0005","\u0005","\u0005","\u0005","\u0005"]
[null,null,5,5,5,5,5,5,null,6,"\u0006",null,"\u0006","\u0006","\u0006","\u0006","\u0006"]
[null,null,6,6,6,6,6,6,null,7,"\u0007",null,"\u0007","\u0007","\u0007","\u0007","\u0007"]
[null,null,7,7,7,7,7,7,null,8,"\b",null,"\b","\b","\b","\b","\b"]
[null,null,8,8,8,8,8,8,null,9,"\t",null,"\t","\t","\t","\t","\t"]
[null,null,9,9,9,9,9,9,null,10,"\n",10,"\n","\n","\n","\n","\n"]
[null,null,"a","a","a","a","a","a",null,11,"\u000b",null,"\u000b","\u000b","\u000b","\u000b","\u000b"]
[null,null,"b","b","b","b","b","b",null,12,"\f",null,"\f","\f","\f","\f","\f"]
[null,null,"c","c","c","c","c","c",null,13,"\r",null,"\r","\r","\r","\r","\r"]
[null,null,"d","d","d","d","d","d",null,14,"\u000e",null,"\u000e","\u000e","\u000e","\u000e","\u000e"]
[null,null,"e","e","e","e","e","e",null,15,"\u000f",null,"\u000f","\u000f","\u000f","\u000f","\u000f"]
[null,null,"f","f","f","f","f","f",null,16,"\u0010",null,"\u0010","\u0010","\u0010","\u0010","\u0010"]
[null,null,"g","g","g","g","g","g",null,17,"\u0011",null,"\u0011","\u0011","\u0011","\u0011","\u0011"]
[null,null,"h","h","h","h","h","h",null,18,"\u0012",null,"\u0012","\u0012","\u0012","\u0012","\u0012"]
[null,null,"i","i","i","i","i","i",null,19,"\u0013",null,"\u0013","\u0013","\u0013","\u0013","\u0013"]
[null,null,"j","j","j","j","j","j",null,20,"\u0014",20,"\u0014","\u0014","\u0014","\u0014","\u0014"]
[null,null,"k","k","k","k","k","k",null,21,"\u0015",null,"\u0015","\u0015","\u0015","\u0015","\u0015"]
[null,null,"l","l","l","l","l","l",null,22,"\u0016",null,"\u0016","\u0016","\u0016","\u0016","\u0016"]
[null,null,"m","m","m","m","m","m",null,23,"\u0017",null,"\u0017","\u0017","\u0017","\u0017","\u0017"]
[null,null,"n","n","n","n","n","n",null,24,"\u0018",null,"\u0018","\u0018","\u0018","\u0018","\u0018"]
[null,null,"o","o","o","o","o","o",null,25,"\u0019",null,"\u0019","\u0019","\u0019","\u0019","\u0019"]
[null,null,"p","p","p","p","p","p",null,26,"\u001a",null,"\u001a","\u001a","\u001a","\u001a","\u001a"]
[null,null,"q","q","q","q","q","q",null,27,"\u001b",null,"\u001b","\u001b","\u001b","\u001b","\u001b"]
[null,null,"r","r","r","r","r","r",null,28,"\u001c",null,"\u001c","\u001c","\u001c","\u001c","\u001c"]
[null,null,"s","s","s","s","s","s",null,29,"\u001d",null,"\u001d","\u001d","\u001d","\u001d","\u001d"]
[null,null,"t","t","t","t","t","t",null,30,"\u001e",30,"\u001e","\u001e","\u001e","\u001e","\u001e"]
[null,null,"u","u","u","u","u","u",null,31,"\u001f",null,"\u001f","\u001f","\u001f","\u001f","\u001f"]
[null,null,"v","v","v","v","v","v",null,32," ",null," "," "," "," "," "]
[null,null,"w","w","w","w","w","w",null,33,"!",null,"!","!","!","!","!"]
[null,null,"x","x","x","x","x","x",null,34,"\"",null,"\"","\"","\"","\"","\""]
[null,null,"y","y","y","y","y","y",null,35,"#",null,"#","#","#","#","#"]
[null,null,"z","z","z","z","z","z",null,36,"$",null,"$","$","$","$","$"]
[null,null,"A","A","A","A","A","A",null,37,"%",null,"%","%","%","%","%"]
[null,null,"B","B","B","B","B","B",null,38,"&",null,"&","&","&","&","&"]
[null,null,"C","C","C","C","C","C",null,39,"'",null,"'","'","'","'","'"]
[null,null,"D","D","D","D","D","D",null,40,"(",40,"(","(","(","(","("]
[null,null,"E","E","E","E","E","E",null,41,")",null,")",")",")",")",")"]
[null,null,"F","F","F","F","F","F",null,42,"*",null,"*","*","*","*","*"]
[null,null,"G","G","G","G","G","G",null,43,"+",null,"+","+","+","+","+"]
[null,null,"H","H","H","H","H","H",null,44,",",null,",",",",",",",",","]
[null,null,"I","I","I","I","I","I",null,45,"-",null,"-","-","-","-","-"]
[null,null,"J","J","J","J","J","J",null,46,".",null,".",".",".",".","."]
[null,null,"K","K","K","K","K","K",null,47,"/",null,"/","/","/","/","/"]
[null,null,"L","L","L","L","L","L",null,48,"0",null,"0","0","0","0","0"]
[null,null,"M","M","M","M","M","M",null,49,"1",null,"1","1","1","1","1"]
[null,null,"N","N","N","N","N","N",null,50,"2",50,"2","2","2","2","2"]
[null,null,"O","O","O","O","O","O",null,51,"3",null,"3","3","3","3","3"]
[null,null,"P","P","P","P","P","P",null,52,"4",null,"4","4","4","4","4"]
[null,null,"Q","Q","Q","Q","Q","Q",null,53,"5",null,"5","5","5","5","5"]
[null,null,"R","R","R","R","R","R",null,54,"6",null,"6","6","6","6","6"]
[null,null,"S","S","S","S","S","S",null,55,"7",null,"7","7","7","7","7"]
[null,null,"T","T","T","T","T","T",null,56,"8",null,"8","8","8","8","8"]
[null,null,"U","U","U","U","U","U",null,57,"9",null,"9","9","9","9","9"]
[null,null,"V","V","V","V","V","V",null,58,":",null,":",":",":",":",":"]
[null,null,"W","W","W","W","W","W",null,59,";",null,";",";",";",";",";"]
[null,null,"X","X","X","X","X","X",null,60,"<",60,"<","<","<","<","<"]
[null,null,"Y","Y","Y","Y","Y","Y",null,61,"=",null,"=","=","=","=","="]
[null,null,"Z","Z","Z","Z","Z","Z",null,62,">",null,">",">",">",">",">"]
[null,null,"!","!","!","!","!","!",null,63,"?",null,"?","?","?","?","?"]
[null,null,"@","@","@","@","@","@",null,64,"@",null,"@","@","@","@","@"]
[null,null,"#","#","#","#","#","#",null,65,"A",null,"A","A","A","A","A"]
[null,null,"%","%","%","%","%","%",null,66,{"$f":"CHAR(J74)","v":"B"},null,{"$f":"CHAR(J74)","v":"B"},{"$f":"CHAR(J74)","v":"B"},{"$f":"CHAR(J74)","v":"B"},{"$f":"CHAR(J74)","v":"B"},{"$f":"CHAR(J74)","v":"B"}]
[null,null,"^","^","^","^","^","^",null,67,"C",null,"C","C","C","C","C"]
[null,null,"&","&","&","&","&","&",null,68,"D",null,"D","D","D","D","D"]
[null,null,"(","(","(","(","(","(",null,69,"E",null,"E","E","E","E","E"]
[null,null,")",")",")",")",")",")",null,70,"F",70,"F","F","F","F","F"]
[null,null,"_","_","_","_","_","_",null,71,"G",null,"G","G","G","G","G"]
[null,null,"-","-","-","-","-","-",null,72,"H",null,"H","H","H","H","H"]
[null,null,"+","+","+","+","+","+",null,73,"I",null,"I","I","I","I","I"]
[null,null,"=","=","=","=","=","=",null,74,"J",null,"J","J","J","J","J"]
[null,null,"|","|","|","|","|","|",null,75,"K",null,"K","K","K","K","K"]
[null,null,"\\","\\","\\","\\","\\","\\",null,76,"L",null,"L","L","L","L","L"]
[null,null,"?","?","?","?","?","?",null,77,"M",null,"M","M","M","M","M"]
[null,null,"<","<","<","<","<","<",null,78,"N",null,"N","N","N","N","N"]
[null,null,">",">",">",">",">",">",null,79,"O",null,"O","O","O","O","O"]
[null,null,".",".",".",".",".",".",null,80,"P",80,"P","P","P","P","P"]
[null,null,",",",",",",",",",",",",null,81,"Q",null,"Q","Q","Q","Q","Q"]
[null,null,null,null,null,null,null,null,null,82,"R",null,"R","R","R","R","R"]
[null,null,null,null,null,null,null,null,null,83,"S",null,"S","S","S","S","S"]
[null,null,null,null,null,null,null,null,null,84,"T",null,"T","T","T","T","T"]
[null,null,null,null,null,null,null,null,null,85,"U",null,"U","U","U","U","U"]
[null,null,null,null,null,null,null,null,null,86,"V",null,"V","V","V","V","V"]
[null,null,null,null,null,null,null,null,null,87,"W",null,"W","W","W","W","W"]
[null,null,null,null,null,null,null,null,null,88,"X",null,"X","X","X","X","X"]
[null,null,null,null,null,null,null,null,null,89,"Y",null,"Y","Y","Y","Y","Y"]
[null,null,null,null,null,null,null,null,null,90,"Z",90,"Z","Z","Z","Z","Z"]
[null,null,null,null,null,null,null,null,null,91,"[",null,"[","[","[","[","["]
[null,null,null,null,null,null,null,null,null,92,"\\",null,"\\","\\","\\","\\","\\"]
[null,null,null,null,null,null,null,null,null,93,"]",null,"]","]","]","]","]"]
[null,null,null,null,null,null,null,null,null,94,"^",null,"^","^","^","^","^"]
[null,null,null,null,null,null,null,null,null,95,"_",null,"_","_","_","_","_"]
[null,null,null,null,null,null,null,null,null,96,"`",null,"`","`","`","`","`"]
[null,null,null,null,null,null,null,null,null,97,"a",null,"a","a","a","a","a"]
[null,null,null,null,null,null,null,null,null,98,"b",null,"b","b","b","b","b"]
[null,null,null,null,null,null,null,null,null,99,"c",null,"c","c","c","c","c"]
[null,null,null,null,null,null,null,null,null,100,"d",100,"d","d","d","d","d"]
[null,null,null,null,null,null,null,null,null,101,"e",null,"e","e","e","e","e"]
[null,null,null,null,null,null,null,null,null,102,"f",null,"f","f","f","f","f"]
[null,null,null,null,null,null,null,null,null,103,"g",null,"g","g","g","g","g"]
[null,null,null,null,null,null,null,null,null,104,"h",null,"h","h","h","h","h"]
[null,null,null,null,null,null,null,null,null,105,"i",null,"i","i","i","i","i"]
[null,null,null,null,null,null,null,null,null,106,"j",null,"j","j","j","j","j"]
[null,null,null,null,null,null,null,null,null,107,"k",null,"k","k","k","k","k"]
[null,null,null,null,null,null,null,null,null,108,"l",null,"l","l","l","l","l"]
[null,null,null,null,null,null,null,null,null,109,"m",null,"m","m","m","m","m"]
[null,null,null,null,null,null,null,null,null,110,"n",110,"n","n","n","n","n"]
[null,null,null,null,null,null,null,null,null,111,"o",null,"o","o","o","o","o"]
[null,null,null,null,null,null,null,null,null,112,"p",null,"p","p","p","p","p"]
[null,null,null,null,null,null,null,null,null,113,"q",null,"q","q","q","q","q"]
[null,null,null,null,null,null,null,null,null,114,"r",null,"r","r","r","r","r"]
[null,null,null,null,null,null,null,null,null,115,"s",null,"s","s","s","s","s"]
[null,null,null,null,null,null,null,null,null,116,"t",null,"t","t","t","t","t"]
[null,null,null,null,null,null,null,null,null,117,"u",null,"u","u","u","u","u"]
[null,null,null,null,null,null,null,null,null,118,"v",null,"v","v","v","v","v"]
[null,null,null,null,null,null,null,null,null,119,"w",null,"w","w","w","w","w"]
[null,null,null,null,null,null,null,null,null,120,"x",120,"x","x","x","x","x"]
[null,null,null,null,null,null,null,null,null,121,"y",null,"y","y","y","y","y"]
[null,null,null,null,null,null,null,null,null,122,"z",null,"z","z","z","z","z"]
[null,null,null,null,null,null,null,null,null,123,"{",null,"{","{","{","{","{"]
[null,null,null,null,null,null,null,null,null,124,"|",null,"|","|","|","|","|"]
[null,null,null,null,null,null,null,null,null,125,"}",null,"}","}","}","}","}"]
[null,null,null,null,null,null,null,null,null,126,"~",null,"~","~","~","~","~"]
[null,null,null,null,null,null,null,null,null,127,"\u007f",null,"\u007f","\u007f","\u007f","\u007f","\u007f"]
[null,null,null,null,null,null,null,null,null,128,"€",null,"€","€","€","€","€"]
[null,null,null,null,null,null,null,null,null,129,"\u0081",null,"\u0081","\u0081","\u0081","\u0081","\u0081"]
[null,null,null,null,null,null,null,null,null,130,{"$f":"CHAR(J138)","v":"‚"},130,{"$f":"CHAR(J138)","v":"‚"},{"$f":"CHAR(J138)","v":"‚"},{"$f":"CHAR(J138)","v":"‚"},{"$f":"CHAR(J138)","v":"‚"},{"$f":"CHAR(J138)","v":"‚"}]
[null,null,null,null,null,null,null,null,null,131,"ƒ",null,"ƒ","ƒ","ƒ","ƒ","ƒ"]
[null,null,null,null,null,null,null,null,null,132,"„",null,"„","„","„","„","„"]
[null,null,null,null,null,null,null,null,null,133,"…",null,"…","…","…","…","…"]
[null,null,null,null,null,null,null,null,null,134,"†",null,"†","†","†","†","†"]
[null,null,null,null,null,null,null,null,null,135,"‡",null,"‡","‡","‡","‡","‡"]
[null,null,null,null,null,null,null,null,null,136,"ˆ",null,"ˆ","ˆ","ˆ","ˆ","ˆ"]
[null,null,null,null,null,null,null,null,null,137,"‰",null,"‰","‰","‰","‰","‰"]
[null,null,null,null,null,null,null,null,null,138,"Š",null,"Š","Š","Š","Š","Š"]
[null,null,null,null,null,null,null,null,null,139,"‹",null,"‹","‹","‹","‹","‹"]
[null,null,null,null,null,null,null,null,null,140,"Œ",140,"Œ","Œ","Œ","Œ","Œ"]
[null,null,null,null,null,null,null,null,null,141,"\u008d",null,"\u008d","\u008d","\u008d","\u008d","\u008d"]
[null,null,null,null,null,null,null,null,null,142,"Ž",null,"Ž","Ž","Ž","Ž","Ž"]
[null,null,null,null,null,null,null,null,null,143,"\u008f",null,"\u008f","\u008f","\u008f","\u008f","\u008f"]
[null,null,null,null,null,null,null,null,null,144,"\u0090",null,"\u0090","\u0090","\u0090","\u0090","\u0090"]
[null,null,null,null,null,null,null,null,null,145,"‘",null,"‘","‘","‘","‘","‘"]
[null,null,null,null,null,null,null,null,null,146,"’",null,"’","’","’","’","’"]
[null,null,null,null,null,null,null,null,null,147,"“",null,"“","“","“","“","“"]
[null,null,null,null,null,null,null,null,null,148,"”",null,"”","”","”","”","”"]
[null,null,null,null,null,null,null,null,null,149,"•",null,"•","•","•","•","•"]
[null,null,null,null,null,null,null,null,null,150,"–",150,"–","–","–","–","–"]
[null,null,null,null,null,null,null,null,null,151,"—",null,"—","—","—","—","—"]
[null,null,null,null,null,null,null,null,null,152,"˜",null,"˜","˜","˜","˜","˜"]
[null,null,null,null,null,null,null,null,null,153,"™",null,"™","™","™","™","™"]
[null,null,null,null,null,null,null,null,null,154,"š",null,"š","š","š","š","š"]
[null,null,null,null,null,null,null,null,null,155,"›",null,"›","›","›","›","›"]
[null,null,null,null,null,null,null,null,null,156,"œ",null,"œ","œ","œ","œ","œ"]
[null,null,null,null,null,null,null,null,null,157,"\u009d",null,"\u009d","\u009d","\u009d","\u009d","\u009d"]
[null,null,null,null,null,null,null,null,null,158,"ž",null,"ž","ž","ž","ž","ž"]
[null,null,null,null,null,null,null,null,null,159,"Ÿ",null,"Ÿ","Ÿ","Ÿ","Ÿ","Ÿ"]
[null,null,null,null,null,null,null,null,null,160," ",160," "," "," "," "," "]
[null,null,null,null,null,null,null,null,null,161,"¡",null,"¡","¡","¡","¡","¡"]
[null,null,null,null,null,null,null,null,null,162,"¢",null,"¢","¢","¢","¢","¢"]
[null,null,null,null,null,null,null,null,null,163,"£",null,"£","£","£","£","£"]
[null,null,null,null,null,null,null,null,null,164,"¤",null,"¤","¤","¤","¤","¤"]
[null,null,null,null,null,null,null,null,null,165,"¥",null,"¥","¥","¥","¥","¥"]
[null,null,null,null,null,null,null,null,null,166,"¦",null,"¦","¦","¦","¦","¦"]
[null,null,null,null,null,null,null,null,null,167,"§",null,"§","§","§","§","§"]
[null,null,null,null,null,null,null,null,null,168,"¨",null,"¨","¨","¨","¨","¨"]
[null,null,null,null,null,null,null,null,null,169,"©",null,"©","©","©","©","©"]
[null,null,null,null,null,null,null,null,null,170,"ª",170,"ª","ª","ª","ª","ª"]
[null,null,null,null,null,null,null,null,null,171,"«",null,"«","«","«","«","«"]
[null,null,null,null,null,null,null,null,null,172,"¬",null,"¬","¬","¬","¬","¬"]
[null,null,null,null,null,null,null,null,null,173,"­",null,"­","­","­","­","­"]
[null,null,null,null,null,null,null,null,null,174,"®",null,"®","®","®","®","®"]
[null,null,null,null,null,null,null,null,null,175,"¯",null,"¯","¯","¯","¯","¯"]
[null,null,null,null,null,null,null,null,null,176,"°",null,"°","°","°","°","°"]
[null,null,null,null,null,null,null,null,null,177,"±",null,"±","±","±","±","±"]
[null,null,null,null,null,null,null,null,null,178,"²",null,"²","²","²","²","²"]
[null,null,null,null,null,null,null,null,null,179,"³",null,"³","³","³","³","³"]
[null,null,null,null,null,null,null,null,null,180,"´",180,"´","´","´","´","´"]
[null,null,null,null,null,null,null,null,null,181,"µ",null,"µ","µ","µ","µ","µ"]
[null,null,null,null,null,null,null,null,null,182,"¶",null,"¶","¶","¶","¶","¶"]
[null,null,null,null,null,null,null,null,null,183,"·",null,"·","·","·","·","·"]
[null,null,null,null,null,null,null,null,null,184,"¸",null,"¸","¸","¸","¸","¸"]
[null,null,null,null,null,null,null,null,null,185,"¹",null,"¹","¹","¹","¹","¹"]
[null,null,null,null,null,null,null,null,null,186,"º",null,"º","º","º","º","º"]
[null,null,null,null,null,null,null,null,null,187,"»",null,"»","»","»","»","»"]
[null,null,null,null,null,null,null,null,null,188,"¼",null,"¼","¼","¼","¼","¼"]
[null,null,null,null,null,null,null,null,null,189,"½",null,"½","½","½","½","½"]
[null,null,null,null,null,null,null,null,null,190,"¾",190,"¾","¾","¾","¾","¾"]
[null,null,null,null,null,null,null,null,null,191,"¿",null,"¿","¿","¿","¿","¿"]
[null,null,null,null,null,null,null,null,null,192,"À",null,"À","À","À","À","À"]
[null,null,null,null,null,null,null,null,null,193,"Á",null,"Á","Á","Á","Á","Á"]
[null,null,null,null,null,null,null,null,null,194,{"$f":"CHAR(J202)","v":"Â"},null,{"$f":"CHAR(J202)","v":"Â"},{"$f":"CHAR(J202)","v":"Â"},{"$f":"CHAR(J202)","v":"Â"},{"$f":"CHAR(J202)","v":"Â"},{"$f":"CHAR(J202)","v":"Â"}]
[null,null,null,null,null,null,null,null,null,195,"Ã",null,"Ã","Ã","Ã","Ã","Ã"]
[null,null,null,null,null,null,null,null,null,196,"Ä",null,"Ä","Ä","Ä","Ä","Ä"]
[null,null,null,null,null,null,null,null,null,197,"Å",null,"Å","Å","Å","Å","Å"]
[null,null,null,null,null,null,null,null,null,198,"Æ",null,"Æ","Æ","Æ","Æ","Æ"]
[null,null,null,null,null,null,null,null,null,199,"Ç",null,"Ç","Ç","Ç","Ç","Ç"]
[null,null,null,null,null,null,null,null,null,200,"È",200,"È","È","È","È","È"]
[null,null,null,null,null,null,null,null,null,201,"É",null,"É","É","É","É","É"]
[null,null,null,null,null,null,null,null,null,202,"Ê",null,"Ê","Ê","Ê","Ê","Ê"]
[null,null,null,null,null,null,null,null,null,203,"Ë",null,"Ë","Ë","Ë","Ë","Ë"]
[null,null,null,null,null,null,null,null,null,204,"Ì",null,"Ì","Ì","Ì","Ì","Ì"]
[null,null,null,null,null,null,null,null,null,205,"Í",null,"Í","Í","Í","Í","Í"]
[null,null,null,null,null,null,null,null,null,206,"Î",null,"Î","Î","Î","Î","Î"]
[null,null,null,null,null,null,null,null,null,207,"Ï",null,"Ï","Ï","Ï","Ï","Ï"]
[null,null,null,null,null,null,null,null,null,208,"Ð",null,"Ð","Ð","Ð","Ð","Ð"]
[null,null,null,null,null,null,null,null,null,209,"Ñ",null,"Ñ","Ñ","Ñ","Ñ","Ñ"]
[null,null,null,null,null,null,null,null,null,210,"Ò",210,"Ò","Ò","Ò","Ò","Ò"]
[null,null,null,null,null,null,null,null,null,211,"Ó",null,"Ó","Ó","Ó","Ó","Ó"]
[null,null,null,null,null,null,null,null,null,212,"Ô",null,"Ô","Ô","Ô","Ô","Ô"]
[null,null,null,null,null,null,null,null,null,213,"Õ",null,"Õ","Õ","Õ","Õ","Õ"]
[null,null,null,null,null,null,null,null,null,214,"Ö",null,"Ö","Ö","Ö","Ö","Ö"]
[null,null,null,null,null,null,null,null,null,215,"×",null,"×","×","×","×","×"]
[null,null,null,null,null,null,null,null,null,216,"Ø",null,"Ø","Ø","Ø","Ø","Ø"]
[null,null,null,null,null,null,null,null,null,217,"Ù",null,"Ù","Ù","Ù","Ù","Ù"]
[null,null,null,null,null,null,null,null,null,218,"Ú",null,"Ú","Ú","Ú","Ú","Ú"]
[null,null,null,null,null,null,null,null,null,219,"Û",null,"Û","Û","Û","Û","Û"]
[null,null,null,null,null,null,null,null,null,220,"Ü",220,"Ü","Ü","Ü","Ü","Ü"]
[null,null,null,null,null,null,null,null,null,221,"Ý",null,"Ý","Ý","Ý","Ý","Ý"]
[null,null,null,null,null,null,null,null,null,222,"Þ",null,"Þ","Þ","Þ","Þ","Þ"]
[null,null,null,null,null,null,null,null,null,223,"ß",null,"ß","ß","ß","ß","ß"]
[null,null,null,null,null,null,null,null,null,224,"à",null,"à","à","à","à","à"]
[null,null,null,null,null,null,null,null,null,225,"á",null,"á","á","á","á","á"]
[null,null,null,null,null,null,null,null,null,226,"â",null,"â","â","â","â","â"]
[null,null,null,null,null,null,null,null,null,227,"ã",null,"ã","ã","ã","ã","ã"]
[null,null,null,null,null,null,null,null,null,228,"ä",null,"ä","ä","ä","ä","ä"]
[null,null,null,null,null,null,null,null,null,229,"å",null,"å","å","å","å","å"]
[null,null,null,null,null,null,null,null,null,230,"æ",230,"æ","æ","æ","æ","æ"]
[null,null,null,null,null,null,null,null,null,231,"ç",null,"ç","ç","ç","ç","ç"]
[null,null,null,null,null,null,null,null,null,232,"è",null,"è","è","è","è","è"]
[null,null,null,null,null,null,null,null,null,233,"é",null,"é","é","é","é","é"]
[null,null,null,null,null,null,null,null,null,234,"ê",null,"ê","ê","ê","ê","ê"]
[null,null,null,null,null,null,null,null,null,235,"ë",null,"ë","ë","ë","ë","ë"]
[null,null,null,null,null,null,null,null,null,236,"ì",null,"ì","ì","ì","ì","ì"]
[null,null,null,null,null,null,null,null,null,237,"í",null,"í","í","í","í","í"]
[null,null,null,null,null,null,null,null,null,238,"î",null,"î","î","î","î","î"]
[null,null,null,null,null,null,null,null,null,239,"ï",null,"ï","ï","ï","ï","ï"]
[null,null,null,null,null,null,null,null,null,240,"ð",240,"ð","ð","ð","ð","ð"]
[null,null,null,null,null,null,null,null,null,241,"ñ",null,"ñ","ñ","ñ","ñ","ñ"]
[null,null,null,null,null,null,null,null,null,242,"ò",null,"ò","ò","ò","ò","ò"]
[null,null,null,null,null,null,null,null,null,243,"ó",null,"ó","ó","ó","ó","ó"]
[null,null,null,null,null,null,null,null,null,244,"ô",null,"ô","ô","ô","ô","ô"]
[null,null,null,null,null,null,null,null,null,245,"õ",null,"õ","õ","õ","õ","õ"]
[null,null,null,null,null,null,null,null,null,246,"ö",null,"ö","ö","ö","ö","ö"]
[null,null,null,null,null,null,null,null,null,247,"÷",null,"÷","÷","÷","÷","÷"]
[null,null,null,null,null,null,null,null,null,248,"ø",null,"ø","ø","ø","ø","ø"]
[null,null,null,null,null,null,null,null,null,249,"ù",null,"ù","ù","ù","ù","ù"]
[null,null,null,null,null,null,null,null,null,250,"ú",250,"ú","ú","ú","ú","ú"]
[null,null,null,null,null,null,null,null,null,251,"û",null,"û","û","û","û","û"]
[null,null,null,null,null,null,null,null,null,252,"ü",null,"ü","ü","ü","ü","ü"]
[null,null,null,null,null,null,null,null,null,253,"ý",null,"ý","ý","ý","ý","ý"]
[null,null,null,null,null,null,null,null,null,254,"þ",null,"þ","þ","þ","þ","þ"]
[null,null,null,null,null,null,null,null,null,255,"ÿ",null,"ÿ","ÿ","ÿ","ÿ","ÿ"]